fUSD/lending_fUSD_20250519
["ID","MTS","AMOUNT","RATE_DAILY","PERIOD"]
[361600664,1747632667590,-151.0,0.00013808,2]
[361600665,1747632667603,-373.96661973,0.00013808,2]
[361600666,1747632667616,-201.893051,0.00013808,2]
[361600667,1747632667629,-1372.11,0.00013808,2]
[361600668,1747632667641,-697.07,0.00013808,2]
[361600669,1747632667654,-432.07,0.00013808,2]
[361600670,1747632667665,-400.0,0.00013808,2]
[361600671,1747632667682,-444.19534317,0.00013808,2]
[361600672,1747632667698,-1441.35,0.00013808,2]
[361600673,1747632667712,-285.5,0.00013808,2]
[361600674,1747632667725,-151.27066866,0.00013814,2]
[361600675,1747632667737,-228.2020442,0.00013825,2]
[361600676,1747632667750,-1810.6593466,0.00013833,2]
[361600677,1747632667763,-151.0,0.00013833,2]
[361600678,1747632667776,-151.0,0.00013833,2]
[361600679,1747632667788,-167.44296889,0.0001384,2]
[361600680,1747632667800,-151.27066866,0.00013857,2]
[361600681,1747632667813,-2850.8583396,0.00013859,2]
[361600682,1747632667825,-685.86,0.00013859,2]
[361600683,1747632667838,-187.073802,0.0001386,2]
[361600684,1747632667850,-151.0,0.0001386,2]
[361600685,1747632667863,-152.873619,0.0001386,2]
[361600686,1747632667875,-151.0,0.0001386,2]
[361600687,1747632667888,-151.0,0.0001386,2]
[361600688,1747632667901,-151.0,0.0001386,2]
[361600689,1747632667914,-151.0,0.0001386,2]
[361600690,1747632667926,-162.029528,0.0001386,2]
[361600691,1747632667944,-151.0,0.0001386,2]
[361600692,1747632667957,-151.0,0.0001386,2]
[361600693,1747632667968,-182.318101,0.00013863,2]
[361600694,1747632667982,-182.318101,0.00013863,2]
[361600695,1747632667996,-151.0,0.00013863,2]
[361600696,1747632668008,-151.0,0.00013863,2]
[361600697,1747632668021,-1158.1,0.00013863,2]
[361600698,1747632668033,-300.0,0.00013863,2]
[361600699,1747632668046,-804.92,0.00013863,2]
[361600700,1747632668059,-1680.0,0.00013864,2]
[361600701,1747632668071,-200.0,0.00013865,2]
[361600702,1747632668084,-245.327588,0.00013865,2]
[361600703,1747632668096,-151.0,0.00013865,2]
[361600704,1747632668108,-151.0,0.00013865,2]
[361600705,1747632668120,-151.0,0.00013865,2]
[361600706,1747632668131,-151.0,0.00013865,2]
[361600707,1747632668144,-151.0,0.00013865,2]
[361600708,1747632668155,-151.0,0.00013865,2]
[361600709,1747632668168,-151.0,0.00013865,2]
[361600710,1747632668184,-151.0,0.00013865,2]
[361600711,1747632668196,-242.435503,0.00013865,2]
[361600712,1747632668207,-242.435503,0.00013865,2]
[361600713,1747632668220,-156.18549,0.00013865,2]
[361600714,1747632668233,-390.284631,0.00013865,2]
[361600715,1747632668245,-390.284631,0.00013865,2]
[361600716,1747632668259,-151.0,0.00013865,2]
[361600717,1747632668275,-1810.6593466,0.00013866,2]
[361600718,1747632668287,-181.95799871,0.00013873,2]
[361600719,1747632668300,-504.60803248,0.00013873,2]
[361600720,1747632668315,-500.0,0.00013873,2]
[361600721,1747632668327,-411.40059798,0.00013873,2]
[361600722,1747632668343,-500.0,0.00013873,2]
[361600723,1747632668356,-500.0,0.00013873,2]
[361600724,1747632668368,-603.47461649,0.00013873,2]
[361600725,1747632668380,-500.0,0.00013873,2]
[361600726,1747632668393,-151.0,0.00013891,2]
[361600727,1747632668406,-151.0,0.00013891,2]
[361600728,1747632668419,-12500.0,0.00013891,2]
[361600729,1747632668436,-922.669,0.00013898,2]
[361600730,1747632668449,-1256.0,0.00013898,2]
[361600731,1747632668461,-585.0,0.00013898,2]
[361600732,1747632668473,-554.0,0.00013898,2]
[361600733,1747632668484,-1459.0,0.00013898,2]
[361600734,1747632668496,-1149.0,0.00013898,2]
[361600735,1747632668510,-5943.0,0.00013898,2]
[361600736,1747632668522,-934.0,0.00013898,2]
[361600737,1747632668535,-4043.0,0.00013898,2]
[361600738,1747632668548,-1308.0,0.00013898,2]
[361600739,1747632668561,-6830.0,0.00013898,2]
[361600740,1747632668573,-157.128,0.00013898,2]
[361600741,1747632668585,-685.86,0.00013899,2]
[361600742,1747632668596,-324.19187064,0.00013899,2]
[361600743,1747632668607,-344.25996351,0.00013899,2]
[361600744,1747632668619,-344.25996351,0.000139,2]
[361600745,1747632668631,-2026.89,0.000139,2]
[361600746,1747632668642,-5154.46,0.000139,2]
[361600747,1747632668653,-151.0,0.000139,2]
[361600748,1747632668665,-151.0,0.000139,2]
[361600749,1747632668679,-151.0,0.000139,2]
[361600750,1747632668695,-151.0,0.000139,2]
[361600751,1747632668706,-238.929592,0.000139,2]
[361600752,1747632668718,-238.929592,0.000139,2]
[361600753,1747632668729,-228.2020442,0.000139,2]
[361600754,1747632668738,-167.44296889,0.000139,2]
[361600755,1747632668748,-151.0,0.000139,2]
[361600756,1747632668758,-151.0,0.000139,2]
[361600757,1747632668769,-12500.0,0.000139,2]
[361600758,1747632668779,-304.165739,0.000139,2]
[361600759,1747632668789,-304.165739,0.000139,2]
[361600760,1747632668800,-1810.6593466,0.000139,2]
[361600761,1747632668810,-3801.569616,0.000139,2]
[361600762,1747632668820,-3801.569616,0.000139,2]
[361600763,1747632668830,-143.84497102,0.000139,2]
[361600764,1747632668849,-7.42569764,0.000139,2]
[361600765,1747632668859,-601.840338,0.000139,2]
[361600766,1747632668869,-601.840338,0.000139,2]
[361600767,1747632668879,-2696.24914628,0.000139,2]
[361600768,1747632668890,-151.0,0.000139,2]
[361600769,1747632668900,-344.25996351,0.000139,2]
[361600770,1747632668910,-2677.36578824,0.000139,2]
[361600771,1747632669031,-188.290492,0.00013698,2]
[361600772,1747632669041,-111.445158,0.000139,2]
[361600773,1747632669868,-27173.34977809,0.000139,2]
[361600774,1747632669880,-818.18310036,0.000139,2]
[361600775,1747632676277,412.338192,7.945e-05,2]
[361600776,1747633057311,150.0,1e-08,2]
[361600777,1747633216855,-224.9289075,0.00011957,2]
[361600778,1747633222031,-270.98,0.00011957,2]
[361600779,1747633225293,-200.0,0.00011957,2]
[361600780,1747633230965,-171.67624742,0.00011957,2]
[361600781,1747633238539,-300.0,0.00011956,2]
[361600782,1747633238561,-34.00769788,0.00011957,2]
[361600783,1747633240750,-241.307917,0.00011957,2]
[361600784,1747633244334,-95.0992302,0.00011957,2]
[361600785,1747633244355,-79.62055181,0.00011957,2]
[361600786,1747633247002,-232.91323714,0.00011957,2]
[361600787,1747633254023,-237.72319943,0.00011897,2]
[361600788,1747633256243,-186.71405016,0.00011897,2]
[361600789,1747633263920,-176.29870229,0.00011897,2]
[361600790,1747633265538,-175.54691229,0.00011897,2]
[361600791,1747633269875,-325.5242035,0.00011897,2]
[361600792,1747633271901,-276.21532418,0.00011897,2]
[361600793,1747633277951,-172.34989415,0.00011897,2]
[361600794,1747633277974,-123.87930587,0.00011957,2]
[361600795,1747633279466,-210.24231611,0.00011957,2]
[361600796,1747633285609,-176.15219612,0.0001193,2]
[361600797,1747633288203,-311.64354557,0.0001193,2]
[361600798,1747633293859,-151.63493018,0.0001193,2]
[361600799,1747633295963,-312.27017587,0.0001193,2]
[361600800,1747633297409,-269.1941094,0.0001193,2]
[361600801,1747633301656,-308.94641731,0.0001193,2]
[361600802,1747633304280,-151.92046913,0.0001193,2]
[361600803,1747633309853,-189.68502545,0.0001193,2]
[361600804,1747633311459,-35.73313097,0.0001193,2]
[361600805,1747633311481,-195.34137445,0.00011957,2]
[361600806,1747633318892,-236.29,0.00011957,2]
[361600807,1747633320995,-185.809355,0.00011957,2]
[361600808,1747633325967,-215.04115685,0.00011957,2]
[361600809,1747633327701,-162.38764673,0.00011924,2]
[361600810,1747633329278,-217.41760271,0.00011924,2]
[361600811,1747633334619,-149.86475056,0.00011924,2]
[361600812,1747633334641,-164.50902,0.00011957,2]
[361600813,1747633335707,-406.41298296,0.00011957,2]
[361600814,1747633338258,-222.84953237,0.00011957,2]
[361600815,1747633342987,-266.44682209,0.00011957,2]
[361600816,1747633345129,-297.8342155,0.00011957,2]
[361600817,1747633350689,-231.56154492,0.00011957,2]
[361600818,1747633352887,-192.73622149,0.00011957,2]
[361600819,1747633357837,-170.55339718,0.00011957,2]
[361600820,1747633362918,-151.53640827,0.00011957,2]
[361600821,1747633365592,-295.20140833,0.00011957,2]
[361600822,1747633367114,-245.71468405,0.00011957,2]
[361600823,1747633369204,-178.69324188,0.00011957,2]
[361600824,1747633373380,-207.01656029,0.00011957,2]
[361600825,1747633375766,-73.32666344,0.00011957,2]
[361600826,1747633448914,-349.8001342,0.00011955,2]
[361600827,1747633453740,-176.330591,0.00011955,2]
[361600828,1747633455177,-250.0,0.00011955,2]
[361600829,1747633456720,-270.93693571,0.00011955,2]
[361600830,1747633461543,-288.73543293,0.00011955,2]
[361600831,1747633469228,-228.6116862,0.00011955,2]
[361600832,1747633470966,-221.3883138,0.00011955,2]
[361600833,1747633476358,-334.65219525,0.00011955,2]
[361600834,1747633479154,-224.21812125,0.00011955,2]
[361600835,1747633485905,-157.06958621,0.00011955,2]
[361600836,1747633493156,-201.19858681,0.00011955,2]
[361600837,1747633495882,-253.34586606,0.00011955,2]
[361600838,1747633498618,-325.51681753,0.00011955,2]
[361600839,1747633501201,-179.04751958,0.00011955,2]
[361600840,1747633503143,-195.26386505,0.00011929,2]
[361600841,1747633508680,-164.76966986,0.00011929,2]
[361600842,1747633510505,-202.0,0.00011929,2]
[361600843,1747633512133,-166.46066028,0.00011929,2]
[361600844,1747633516681,-179.86,0.00011929,2]
[361600845,1747633518981,-91.64580481,0.00011929,2]
[361600846,1747633519004,-92.14832913,0.00011955,2]
[361600847,1747633524844,-194.85052597,0.00011952,2]
[361600848,1747633528103,-226.32028476,0.00011952,2]
[361600849,1747633532795,-168.47132671,0.00011952,2]
[361600850,1747633534855,-226.24455807,0.00011952,2]
[361600851,1747633541138,-315.27128866,0.00011952,2]
[361600852,1747633546087,202.0,0.00011163,2]
[361600853,1747633549711,-82.04201583,0.00011952,2]
[361600854,1747633549733,-88.87798417,0.00011952,2]
[361600855,1747633551838,-197.82201583,0.00011952,2]
[361600856,1747633551860,-26.58857517,0.00011955,2]
[361600857,1747633556583,-158.6911181,0.00011955,2]
[361600858,1747633559733,-200.0,0.00011955,2]
[361600859,1747633566343,728.38116081,0.00027397,120]
[361600860,1747633610675,138.73725162,0.00010004,2]
[361600861,1747633610706,514.80274838,0.00010004,2]
[361600862,1747633626289,-512.0,0.0001144,2]
[361600863,1747633626339,-171.69581499,0.00011862,2]
[361600864,1747633626392,-302.27688512,0.0001189,2]
[361600865,1747633627810,-185.63906456,0.0001189,2]
[361600866,1747633630723,-24.08405032,0.0001189,2]
[361600867,1747633633086,-61.72019107,0.00011955,2]
[361600868,1747633633111,-200.0,0.00011956,2]
[361600869,1747633633135,-319.22226841,0.00011958,2]
[361600870,1747633650421,-185.639065,0.00011898,2]
[361600871,1747633650443,-994.22471503,0.00011958,2]
[361600872,1747633751115,-2490.83301656,0.00011958,2]
[361600873,1747633751135,-2360.38,0.00011962,2]
[361600874,1747633751157,-159.24,0.00012033,3]
[361600875,1747633751177,-150.0,0.00012033,2]
[361600876,1747633751200,-200.0,0.00012037,2]
[361600877,1747633751222,-200.0,0.000122,2]
[361600878,1747633751242,-368.87038344,0.00012267,2]
[361600879,1747633752108,-284.66961656,0.00012267,2]
[361600880,1747633752131,-512.0,0.0001234,2]
[361600881,1747633752155,-162.82,0.00012454,2]
[361600882,1747633752178,-162.82,0.00012457,2]
[361600883,1747633752200,-162.82,0.0001246,2]
[361600884,1747633752222,-162.82,0.00012464,2]
[361600885,1747633752244,-162.82,0.00012467,2]
[361600886,1747633752265,-162.82,0.0001247,2]
[361600887,1747633752286,-162.82,0.00012473,2]
[361600888,1747633752308,-162.82,0.00012477,2]
[361600889,1747633752331,-162.82,0.0001248,2]
[361600890,1747633752352,-162.82,0.00012483,2]
[361600891,1747633752374,-162.82,0.00012487,2]
[361600892,1747633752397,-162.82,0.0001249,2]
[361600893,1747633752419,-162.82,0.00012493,2]
[361600894,1747633752438,-300.0,0.00012494,2]
[361600895,1747633752460,-1200.0,0.00012495,2]
[361600896,1747633752480,-162.82,0.00012496,2]
[361600897,1747633752500,-162.82,0.000125,2]
[361600898,1747633752520,-162.82,0.00012503,2]
[361600899,1747633752540,-300.0,0.00012503,2]
[361600900,1747633752561,-150.0,0.00012503,2]
[361600901,1747633752581,-162.82,0.00012506,2]
[361600902,1747633752602,-162.82,0.0001251,2]
[361600903,1747633752622,-162.82,0.00012513,2]
[361600904,1747633752642,-162.82,0.00012516,2]
[361600905,1747633752664,-845.85,0.00012544,2]
[361600906,1747633752685,-2516.37820925,0.00012553,2]
[361600907,1747633772104,-578.65,0.00012418,2]
[361600909,1747633816168,165.0,0.00011211,2]
[361600917,1747633831483,-1200.0,0.00012552,2]
[361600918,1747633831493,-930.21370478,0.00012553,2]
[361600919,1747633831755,-2585.58278701,0.00012553,2]
[361601480,1747633837523,-4511.05793717,0.00012553,2]
[361601483,1747633837536,-13356.76736179,0.00012553,2]
[361601485,1747633837545,-250.0,0.0001258,2]
[361601487,1747633837554,-200.0,0.0001258,2]
[361601489,1747633837564,-12.02614168,0.00012607,2]
[361601491,1747633837574,-140.57385832,0.00012607,2]
[361601493,1747633837584,-200.0,0.00012669,2]
[361601495,1747633837593,-906.78,0.00012679,2]
[361601497,1747633837601,-353.58826899,0.00012741,2]
[361601508,1747633837727,-1006.57173101,0.00012741,2]
[361601510,1747633837736,-1195.76,0.00012763,2]
[361601512,1747633837745,-512.0,0.0001279,2]
[361601514,1747633837754,-171.69581499,0.00012793,2]
[361601516,1747633837763,-167.75,0.00012862,2]
[361601518,1747633837773,-288.85920413,0.00012892,2]
[361601520,1747633837786,-1224.07,0.00012893,2]
[361601522,1747633837796,-261.55,0.00012893,2]
[361601524,1747633837805,-6038.60034509,0.00012893,2]
[361601526,1747633837817,-307.62,0.00012893,2]
[361601700,1747633839532,-655.51965491,0.00012893,2]
[361601702,1747633839542,-150.99,0.00012893,2]
[361601704,1747633839552,-4344.49034509,0.00012893,2]
[361601706,1747633839563,-2755.45965491,0.00012893,2]
[361601708,1747633839572,-859.1,0.00012893,2]
[361601710,1747633839581,-9999.99,0.00012893,2]
[361601712,1747633839591,-999.99,0.00012893,2]
[361601714,1747633839600,-1408.07,0.00012893,2]
[361601716,1747633839610,-150.99,0.00012893,2]
[361601718,1747633839620,-1417.84,0.00012893,2]
[361601720,1747633839629,-950.45,0.00012893,2]
[361601722,1747633839639,-166.3,0.00012953,2]
[361601724,1747633839649,-1020.53,0.00013,2]
[361601726,1747633839659,-1020.53,0.00013,2]
[361601728,1747633839669,-1020.53,0.00013,2]
[361601730,1747633839678,-1020.53,0.00013,2]
[361601732,1747633839687,-204.11,0.00013,2]
[361601734,1747633839697,-204.11,0.00013,2]
[361601736,1747633839707,-204.11,0.00013,2]
[361601738,1747633839716,-480.55297111,0.00013106,2]
[361601740,1747633839726,-500.0,0.00013106,2]
[361601742,1747633839735,-589.34443935,0.00013106,2]
[361601744,1747633839745,-500.0,0.00013106,2]
[361601746,1747633839754,-500.0,0.00013106,2]
[361601748,1747633839763,-500.0,0.00013106,2]
[361601750,1747633839772,-500.0,0.00013106,2]
[361601752,1747633839785,-500.0,0.00013106,2]
[361601754,1747633839795,-328.54806882,0.00013106,2]
[361601756,1747633839804,-250.0,0.00013151,2]
[361601758,1747633839814,-200.0,0.00013151,2]
[361601760,1747633839823,-200.0,0.00013153,2]
[361601762,1747633839833,-207.4,0.00013222,2]
[361601764,1747633839842,-155.0,0.00013222,2]
[361601766,1747633839852,-1199.20597015,0.00013222,2]
[361601768,1747633839863,-668.65185757,0.00013222,2]
[361601770,1747633839873,-668.65185757,0.00013222,2]
[361601772,1747633839883,-151.0,0.00013222,2]
[361601774,1747633839892,-512.0,0.0001324,2]
[361601776,1747633839902,-403.97,0.00013288,2]
[361601778,1747633839911,-457.94,0.00013288,2]
[361601780,1747633839920,-1000.0,0.0001342,2]
[361601782,1747633839932,-150.27,0.00013425,2]
[361601784,1747633839943,-152.6,0.00013553,2]
[361601786,1747633839952,-255.0,0.00013591,2]
[361601788,1747633839962,-174.8600171,0.00013598,2]
[361601790,1747633839971,-595.36940197,0.00013598,2]
[361601792,1747633839980,-174.28679649,0.00013598,2]
[361601794,1747633839990,-179.46663083,0.00013598,2]
[361601796,1747633840000,-328.7509,0.00013598,2]
[361601797,1747633840009,-325.46,0.00013604,2]
[361601799,1747633840019,-150.3,0.00013604,2]
[361601801,1747633840028,-796.86,0.00013604,2]
[361601803,1747633840037,-500.0,0.00013673,2]
[361601805,1747633840046,-500.0,0.00013673,2]
[361601807,1747633840057,-500.0,0.00013673,2]
[361601809,1747633840066,-502.6618643,0.00013673,2]
[361601811,1747633840076,-179.46663083,0.00013674,2]
[361601813,1747633840086,-864.76119748,0.00013683,2]
[361601815,1747633840095,-512.0,0.0001369,2]
[361601817,1747633840105,-233.3870881,0.00013697,2]
[361601819,1747633840114,-226.17793236,0.00013697,2]
[361601821,1747633840123,-221.65283577,0.00013697,2]
[361601823,1747633840132,-402.06116307,0.00013698,2]
[361601825,1747633840142,-403.99204062,0.00013698,2]
[361601827,1747633840151,-543.16976731,0.00013698,2]
[361601828,1747633840160,-178.59681532,0.00013698,2]
[361601830,1747633840168,-400.0,0.00013698,2]
[361601832,1747633840177,-401.09920082,0.00013698,2]
[361601834,1747633840187,-224.84927339,0.00013698,2]
[361601836,1747633840196,-400.0,0.00013698,2]
[361601838,1747633840205,-400.52951919,0.00013698,2]
[361601840,1747633840215,-400.0,0.00013698,2]
[361601842,1747633840224,-401.79058086,0.00013698,2]
[361601844,1747633840233,-400.0,0.00013698,2]
[361601846,1747633840242,-401.1202433,0.00013698,2]
[361601848,1747633840252,-3135.199194,0.00013698,2]
[361601850,1747633840261,-1131.957962,0.00013698,2]
[361601852,1747633840270,-401.06666504,0.00013698,2]
[361601854,1747633840279,-400.0,0.00013698,2]
[361601856,1747633840290,-400.0,0.00013698,2]
[361601858,1747633840301,-400.0,0.00013698,2]
[361601859,1747633840311,-981.559336,0.00013698,2]
[361601861,1747633840321,-400.0,0.00013698,2]
[361601863,1747633840331,-400.0,0.00013698,2]
[361601865,1747633840340,-400.0,0.00013698,2]
[361601867,1747633840350,-400.0,0.00013698,2]
[361601869,1747633840359,-400.0,0.00013698,2]
[361601871,1747633840368,-400.0,0.00013698,2]
[361601873,1747633840377,-443.08900334,0.00013698,2]
[361601875,1747633840386,-401.34737286,0.00013698,2]
[361601877,1747633840395,-400.0,0.00013698,2]
[361601879,1747633840404,-400.0,0.00013698,2]
[361601881,1747633840413,-400.0,0.00013698,2]
[361601883,1747633840423,-166.361386,0.00013698,2]
[361601885,1747633840432,-400.0,0.00013698,2]
[361601887,1747633840442,-546.58406269,0.00013698,2]
[361601889,1747633840456,-400.0,0.00013698,2]
[361601891,1747633840473,-400.0,0.00013698,2]
[361601893,1747633840483,-400.0,0.00013698,2]
[361601895,1747633840495,-400.0,0.00013698,2]
[361601897,1747633840504,-400.0,0.00013698,2]
[361601899,1747633840513,-400.0,0.00013698,2]
[361601900,1747633840523,-400.0,0.00013698,2]
[361601902,1747633840532,-405.02465592,0.00013698,2]
[361601904,1747633840542,-500.0,0.00013698,2]
[361601906,1747633840551,-400.0,0.00013698,2]
[361601908,1747633840560,-352.90578983,0.00013698,2]
[361601910,1747633840569,-400.0,0.00013698,2]
[361601912,1747633840579,-400.0,0.00013698,2]
[361601914,1747633840588,-400.0,0.00013698,2]
[361601916,1747633840597,-450.0,0.00013698,2]
[361601918,1747633840606,-1000.0,0.00013698,2]
[361601920,1747633840615,-400.0,0.00013698,2]
[361601922,1747633840625,-584.58,0.00013698,2]
[361601924,1747633840634,-400.0,0.00013698,2]
[361601926,1747633840643,-400.0,0.00013698,2]
[361601928,1747633840653,-400.0,0.00013698,2]
[361601930,1747633840662,-400.0,0.00013698,2]
[361601931,1747633840672,-400.0,0.00013698,2]
[361601933,1747633840681,-400.0,0.00013698,2]
[361601935,1747633840691,-352.03425991,0.00013698,2]
[361601937,1747633840700,-400.0,0.00013698,2]
[361601939,1747633840710,-400.0,0.00013698,2]
[361601941,1747633840719,-400.0,0.00013698,2]
[361601942,1747633840729,-400.0,0.00013698,2]
[361601943,1747633840738,-400.0,0.00013698,2]
[361601944,1747633840747,-400.0,0.00013698,2]
[361601945,1747633840757,-400.0,0.00013698,2]
[361601946,1747633840766,-559.0,0.00013698,2]
[361601947,1747633840775,-400.0,0.00013698,2]
[361601948,1747633840789,-550.64,0.00013698,2]
[361601949,1747633840798,-400.0,0.00013698,2]
[361601950,1747633840807,-400.0,0.00013698,2]
[361601951,1747633840816,-400.53237311,0.00013698,2]
[361601952,1747633840827,-400.0,0.00013698,2]
[361601953,1747633840836,-400.0,0.00013698,2]
[361601955,1747633840845,-400.0,0.00013698,2]
[361601956,1747633840857,-400.0,0.00013698,2]
[361601958,1747633840867,-397.3076851,0.00013698,2]
[361601961,1747633840877,-400.0,0.00013698,2]
[361601963,1747633840887,-407.17,0.00013698,2]
[361601965,1747633840896,-400.0,0.00013698,2]
[361601967,1747633840905,-400.0,0.00013698,2]
[361601969,1747633840914,-400.0,0.00013698,2]
[361601971,1747633840924,-400.0,0.00013698,2]
[361601973,1747633840933,-693.98,0.00013698,2]
[361601975,1747633840942,-400.0,0.00013698,2]
[361601977,1747633840951,-400.0,0.00013698,2]
[361601979,1747633840960,-400.0,0.00013698,2]
[361601981,1747633840969,-400.0,0.00013698,2]
[361601983,1747633840978,-400.0,0.00013698,2]
[361601985,1747633840987,-411.10412221,0.00013698,2]
[361601987,1747633840996,-400.0,0.00013698,2]
[361601989,1747633841005,-400.0,0.00013698,2]
[361601991,1747633841014,-400.0,0.00013698,2]
[361601992,1747633841023,-400.0,0.00013698,2]
[361601994,1747633841032,-400.0,0.00013698,2]
[361601996,1747633841041,-400.0,0.00013698,2]
[361601998,1747633841050,-400.0,0.00013698,2]
[361602000,1747633841059,-302.71533365,0.00013698,2]
[361602002,1747633841068,-404.74975355,0.00013698,2]
[361602004,1747633841077,-456.57150316,0.00013698,2]
[361602006,1747633841087,-400.0,0.00013698,2]
[361602008,1747633841097,-349.23171662,0.00013698,2]
[361602010,1747633841106,-402.73072152,0.00013698,2]
[361602012,1747633841115,-400.0,0.00013698,2]
[361602014,1747633841125,-652.06,0.00013698,2]
[361602016,1747633841135,-695.66,0.00013698,2]
[361602018,1747633841144,-400.0,0.00013698,2]
[361602020,1747633841153,-267.62401274,0.00013698,2]
[361602022,1747633841162,-400.0,0.00013698,2]
[361602024,1747633841171,-400.0,0.00013698,2]
[361602026,1747633841181,-400.0,0.00013698,2]
[361602028,1747633841190,-574.74,0.00013698,2]
[361602030,1747633841199,-400.0,0.00013698,2]
[361602032,1747633841208,-400.0,0.00013698,2]
[361602063,1747633841485,-400.0,0.00013698,2]
[361602065,1747633841495,-400.56212363,0.00013698,2]
[361602067,1747633841504,-400.0,0.00013698,2]
[361602069,1747633841513,-524.89,0.00013698,2]
[361602071,1747633841522,-400.0,0.00013698,2]
[361602072,1747633841531,-400.0,0.00013698,2]
[361602074,1747633841540,-400.0,0.00013698,2]
[361602076,1747633841549,-404.61392074,0.00013698,2]
[361602078,1747633841558,-400.0,0.00013698,2]
[361602080,1747633841567,-400.0,0.00013698,2]
[361602082,1747633841576,-400.0,0.00013698,2]
[361602084,1747633841586,-407.86250084,0.00013698,2]
[361602086,1747633841595,-400.0,0.00013698,2]
[361602089,1747633841605,-400.0,0.00013698,2]
[361602090,1747633841614,-400.0,0.00013698,2]
[361602093,1747633841625,-400.0,0.00013698,2]
[361602094,1747633841635,-400.0,0.00013698,2]
[361602096,1747633841645,-400.0,0.00013698,2]
[361602098,1747633841654,-565.88,0.00013698,2]
[361602100,1747633841664,-400.0,0.00013698,2]
[361602103,1747633841673,-400.0,0.00013698,2]
[361602104,1747633841683,-490.89317893,0.00013698,2]
[361602106,1747633841692,-400.0,0.00013698,2]
[361602108,1747633841701,-400.0,0.00013698,2]
[361602110,1747633841710,-547.79,0.00013698,2]
[361602112,1747633841720,-494.56,0.00013698,2]
[361602114,1747633841729,-188.91490901,0.00013698,2]
[361602116,1747633841738,-400.52885908,0.00013698,2]
[361602118,1747633841747,-400.0,0.00013698,2]
[361602120,1747633841756,-400.0,0.00013698,2]
[361602122,1747633841766,-400.0,0.00013698,2]
[361602124,1747633841775,-403.02319837,0.00013698,2]
[361602126,1747633841787,-401.44598555,0.00013698,2]
[361602128,1747633841796,-400.0,0.00013698,2]
[361602130,1747633841805,-400.0,0.00013698,2]
[361602132,1747633841815,-535.55,0.00013698,2]
[361602134,1747633841824,-400.0,0.00013698,2]
[361602136,1747633841834,-588.77,0.00013698,2]
[361602138,1747633841843,-400.0,0.00013698,2]
[361602140,1747633841853,-400.0,0.00013698,2]
[361602142,1747633841864,-400.0,0.00013698,2]
[361602144,1747633841873,-400.0,0.00013698,2]
[361602146,1747633841882,-400.0,0.00013698,2]
[361602148,1747633841891,-400.0,0.00013698,2]
[361602150,1747633841902,-400.0,0.00013698,2]
[361602152,1747633841911,-400.0,0.00013698,2]
[361602154,1747633841920,-400.0,0.00013698,2]
[361602156,1747633841930,-400.0,0.00013698,2]
[361602158,1747633841940,-155.38367855,0.00013698,2]
[361602160,1747633841949,-457.67,0.00013698,2]
[361602162,1747633841958,-400.0,0.00013698,2]
[361602164,1747633841967,-406.61940126,0.00013698,2]
[361602166,1747633841976,-400.81584776,0.00013698,2]
[361602168,1747633841985,-400.0,0.00013698,2]
[361602170,1747633841994,-400.0,0.00013698,2]
[361602172,1747633842004,-235.97560098,0.00013698,2]
[361602174,1747633842013,-465.82,0.00013698,2]